[Event "FIDE World Senior-50 CC 2023"]
[Site "Terrasini"]
[Date "2023.10.29"]
[Round "5.14"]
[White "Milat, Marcel"]
[Black "Seul, Georg"]
[Result "1/2-1/2"]
[ECO "A62"]
[WhiteElo "2207"]
[BlackElo "2383"]
[Annotator "ChessBase"]
[PlyCount "61"]
[EventDate "2023.10.22"]
[EventType "swiss"]
[EventCountry "ITA"]
[SourceTitle "playchess.com"]
[Source "ChessBase"]
[SourceQuality "1"]
[TimeControl "40/5400+30:1800+30"]

1. d4 {[%emt 0:06:01]} Nf6 {[%emt 0:00:07]} 2. c4 {[%emt 0:00:07]} e6 {[%emt 0:00:04]} 3. g3 {[%emt 0:01:06]} c5 {[%emt 0:00:25]} 4. d5 {[%emt 0:00:09]} exd5 {[%emt 0:00:14]} 5. cxd5 {[%emt 0:00:08]} d6 {[%emt 0:00:07]} 6. Nc3 {[%emt 0:00:08]} g6 {[%emt 0:00:16]} 7. Bg2 {[%emt 0:00:10]} Bg7 {[%emt 0:00:05]} 8. Nf3 {[%emt 0:00:08]} O-O {[%emt 0:00:11]} 9. O-O {[%emt 0:00:10]} Re8 {[%emt 0:00:18]} 10. Bf4 {[%emt 0:01:21]} a6 {[%emt 0:00:26]} 11. a3 {[%emt 0:10:13]} h6 {[%emt 0:04:08]} 12. Re1 {[%emt 0:04:15]} g5 {[%emt 0:01:48]} 13. Bd2 {[%emt 0:03:14]} Bf5 {[%emt 0:00:48]} 14. h4 {[%emt 0:00:26]} g4 {[%emt 0:00:37]} 15. Nh2 {[%emt 0:00:02]} Bg6 {[%emt 0:02:03]} 16. e4 {[%emt 0:15:48]} h5 {[%emt 0:00:21]} 17. Bf4 {[%emt 0:00:09]} Qb6 {[%emt 0:12:13]} 18. Rc1 {[%emt 0:07:06]} Nbd7 {[%emt 0:07:35]} 19. Na4 {[%emt 0:00:07]} Qc7 {[%emt 0:23:28]} 20. b4 {[%emt 0:09:43]} c4 {[%emt 0:01:03]} 21. e5 {[%emt 0:25:03]} dxe5 {[%emt 0:03:01]} 22. d6 {[%emt 0:00:07]} Qd8 {[%emt 0:00:10]} 23. Be3 {[%emt 0:00:43]} e4 {[%emt 0:02:07]} 24. Nf1 {[%emt 0:00:09]} Re5 {[%emt 0:21:34]} 25. Bd4 {[%emt 0:16:27]} Rd5 {[%emt 0:01:06]} 26. Ne3 {[%emt 0:00:00]} Rxd6 {[%emt 0:00:48]} 27. Nxc4 {[%emt 0:00:00]} Rxd4 {[%emt 0:06:15]} 28. Qxd4 {[%emt 0:00:00]} b5 {[%emt 0:04:18]} 29. Ncb6 {[%emt 0:00:00]} Nxb6 {[%emt 0:02:42]} 30. Qxd8+ {[%emt 0:00:00]} Rxd8 {[%emt 0:00:02]} 31. Nxb6 {[%emt 0:00:00]} 1/2-1/2

[Event "FIDE World Senior-50 CC 2023"]
[Site "Terrasini"]
[Date "2023.10.29"]
[Round "5.15"]
[White "Melikhov, Evgeny V."]
[Black "Vinter-Schou, Uffe"]
[Result "0-1"]
[ECO "A61"]
[WhiteElo "2189"]
[BlackElo "2345"]
[Annotator "ChessBase"]
[PlyCount "74"]
[EventDate "2023.10.22"]
[EventType "swiss"]
[EventCountry "ITA"]
[SourceTitle "playchess.com"]
[Source "ChessBase"]
[SourceQuality "1"]
[TimeControl "40/5400+30:1800+30"]

1. d4 {[%emt 0:00:05]} Nf6 {[%emt 0:01:50]} 2. c4 {[%emt 0:00:29]} c5 {[%emt 0:00:21]} 3. d5 {[%emt 0:01:04]} e6 {[%emt 0:01:16]} 4. Nc3 {[%emt 0:00:53]} exd5 {[%emt 0:00:16]} 5. cxd5 {[%emt 0:00:08]} d6 {[%emt 0:00:08]} 6. Nf3 {[%emt 0:00:58]} g6 {[%emt 0:00:13]} 7. h3 {[%emt 0:00:49]} a6 {[%emt 0:01:42]} 8. a4 {[%emt 0:01:03]} Qe7 {[%emt 0:00:26]} 9. Bg5 {[%emt 0:09:42]} Bg7 {[%emt 0:00:27]} 10. e3 {[%emt 0:01:25]} O-O {[%emt 0:00:39]} 11. Be2 {[%emt 0:09:06]} Nbd7 {[%emt 0:00:32]} 12. O-O {[%emt 0:00:34]} h6 {[%emt 0:01:16]} 13. Bh4 {[%emt 0:07:27]} g5 {[%emt 0:01:29]} 14. Bg3 {[%emt 0:01:22]} Ne8 {[%emt 0:02:00]} 15. Re1 {[%emt 0:09:40]} f5 {[%emt 0:03:24]} 16. Nd2 {[%emt 0:06:24]} f4 {[%emt 0:37:14]} 17. exf4 {[%emt 0:00:20]} gxf4 {[%emt 0:00:07]} 18. Bg4 {[%emt 0:11:15]} Ne5 {[%emt 0:00:12]} 19. Bxc8 {[%emt 0:00:22]} Rxc8 {[%emt 0:00:43]} 20. Bh2 {[%emt 0:02:07]} Rf5 {[%emt 0:08:11]} 21. g3 {[%emt 0:13:36]} fxg3 {[%emt 0:03:24]} 22. Bxg3 {[%emt 0:00:49]} Qf7 {[%emt 0:00:34]} 23. Qe2 {[%emt 0:05:16]} Nf6 {[%emt 0:15:37]} 24. Nce4 {[%emt 0:09:04]} Nxe4 {[%emt 0:06:33]} 25. Qxe4 {[%emt 0:01:34]} Rf8 {[%emt 0:01:59]} 26. Re2 {[%emt 0:01:41]} h5 {[%emt 0:06:01]} 27. Kg2 {[%emt 0:03:45]} h4 {[%emt 0:03:56]} 28. Qxh4 {[%emt 0:00:07]} Qxd5+ {[%emt 0:00:10]} 29. Qe4 {[%emt 0:00:09]} Qf7 {[%emt 0:00:32]} 30. Rae1 {[%emt 0:01:04]} b5 {[%emt 0:01:38]} 31. b3 {[%emt 0:00:35]} Bh6 {[%emt 0:02:31]} 32. Qc2 {[%emt 0:01:59]} Bxd2 {[%emt 0:00:23]} 33. Rxd2 {[%emt 0:01:30]} Nf3 {[%emt 0:00:32]} 34. Red1 {[%emt 0:00:04]} Qb7 {[%emt 0:00:21]} 35. Rd5 {[%emt 0:00:31]} Nd4 {[%emt 0:00:15]} 36. Qe4 {[%emt 0:00:54]} Qxd5 {[%emt 0:00:12]} 37. Rxd4 {[%emt 0:00:24]} cxd4 {[%emt 0:00:10]} 0-1

[Event "FIDE World Senior-50 CC 2023"]
[Site "Terrasini"]
[Date "2023.10.29"]
[Round "5.16"]
[White "Cummings, David H."]
[Black "Nikolaidis, Konstantinos"]
[Result "1/2-1/2"]
[ECO "A13"]
[WhiteElo "2325"]
[BlackElo "2096"]
[Annotator "ChessBase"]
[PlyCount "81"]
[EventDate "2023.10.22"]
[EventType "swiss"]
[EventCountry "ITA"]
[SourceTitle "playchess.com"]
[Source "ChessBase"]
[SourceQuality "1"]
[TimeControl "40/5400+30:1800+30"]

1. Nf3 {[%emt 0:00:10]} Nf6 {[%emt 0:00:57]} 2. c4 {[%emt 0:00:14]} e6 {[%emt 0:01:57]} 3. Nc3 {[%emt 0:00:46]} d5 {[%emt 0:01:52]} 4. e3 {[%emt 0:00:37]} Be7 {[%emt 0:03:21]} 5. b3 {[%emt 0:00:55]} O-O {[%emt 0:01:47]} 6. Bb2 {[%emt 0:00:11]} c5 {[%emt 0:02:37]} 7. cxd5 {[%emt 0:00:52]} exd5 {[%emt 0:00:42]} 8. d4 {[%emt 0:01:42]} b6 {[%emt 0:07:11]} 9. Rc1 {[%emt 0:02:57]} Bb7 {[%emt 0:01:22]} 10. Be2 {[%emt 0:07:12]} Nbd7 {[%emt 0:00:49]} 11. O-O {[%emt 0:00:25]} Bd6 {[%emt 0:09:48]} 12. Nb5 {[%emt 0:11:19]} Bb8 {[%emt 0:03:54]} 13. Ne5 {[%emt 0:05:34]} a6 {[%emt 0:04:00]} 14. Nxd7 {[%emt 0:02:45]} Qxd7 {[%emt 0:00:42]} 15. Nc3 {[%emt 0:00:32]} Qd6 {[%emt 0:08:36]} 16. g3 {[%emt 0:02:15]} Bc6 {[%emt 0:06:41]} 17. Bf3 {[%emt 0:06:09]} Rd8 {[%emt 0:03:40]} 18. Ba3 {[%emt 0:06:25]} Ba7 {[%emt 0:02:09]} 19. Ne2 {[%emt 0:12:55]} Bb5 {[%emt 0:02:07]} 20. Re1 {[%emt 0:02:13]} Rac8 {[%emt 0:01:27]} 21. Nf4 {[%emt 0:04:13]} Qd7 {[%emt 0:04:35]} 22. Bg2 {[%emt 0:03:00]} Rc7 {[%emt 0:03:10]} 23. Bh3 {[%emt 0:04:55]} Qe8 {[%emt 0:00:42]} 24. dxc5 {[%emt 0:00:41]} bxc5 {[%emt 0:01:14]} 25. Bb2 {[%emt 0:00:24]} Ne4 {[%emt 0:07:10]} 26. Nxd5 {[%emt 0:07:14]} Rc6 {[%emt 0:01:04]} 27. Bg2 {[%emt 0:05:17]} f5 {[%emt 0:03:36]} 28. f3 {[%emt 0:02:51]} Ng5 {[%emt 0:01:04]} 29. e4 {[%emt 0:01:22]} Rcd6 {[%emt 0:05:04]} 30. h4 {[%emt 0:01:29]} Ne6 {[%emt 0:02:38]} 31. Qc2 {[%emt 0:03:15]} Bd3 {[%emt 0:05:22]} 32. Qd2 {[%emt 0:00:59]} Qf7 {[%emt 0:01:07]} 33. Kh2 {[%emt 0:00:32]} Bb5 {[%emt 0:01:09]} 34. Rcd1 {[%emt 0:01:38]} Bc6 {[%emt 0:01:42]} 35. Qc2 {[%emt 0:01:02]} f4 {[%emt 0:00:55]} 36. g4 {[%emt 0:01:06]} Nd4 {[%emt 0:01:05]} 37. Bxd4 {[%emt 0:00:54]} cxd4 {[%emt 0:00:02]} 38. Nb4 {[%emt 0:01:10]} Bb5 {[%emt 0:00:43]} 39. Nd3 {[%emt 0:00:22]} Rh6 {[%emt 0:00:35]} 40. Qf2 {[%emt 0:01:01]} Qe7 {[%emt 0:01:03]} 41. e5 {[%emt 0:14:23]} 1/2-1/2

[Event "FIDE World Senior-50 CC 2023"]
[Site "Terrasini"]
[Date "2023.10.29"]
[Round "5.17"]
[White "Fayard, Alain"]
[Black "Cabe, Arlan"]
[Result "1/2-1/2"]
[ECO "D90"]
[WhiteElo "2158"]
[BlackElo "2303"]
[Annotator "ChessBase"]
[PlyCount "54"]
[EventDate "2023.10.22"]
[EventType "swiss"]
[EventCountry "ITA"]
[SourceTitle "playchess.com"]
[Source "ChessBase"]
[SourceQuality "1"]
[TimeControl "40/5400+30:1800+30"]

1. d4 {[%emt 0:00:04]} d5 {[%emt 0:00:27]} 2. c4 {[%emt 0:00:19]} c6 {[%emt 0:00:57]} 3. cxd5 {[%emt 0:00:15]} cxd5 {[%emt 0:00:03]} 4. Bf4 {[%emt 0:00:14]} Nc6 {[%emt 0:03:44]} 5. Nc3 {[%emt 0:00:46]} Nf6 {[%emt 0:00:40]} 6. e3 {[%emt 0:00:24]} a6 {[%emt 0:01:00]} 7. Bd3 {[%emt 0:02:47]} g6 {[%emt 0:01:52]} 8. h3 {[%emt 0:04:39]} Bg7 {[%emt 0:02:41]} 9. Nf3 {[%emt 0:02:18]} O-O {[%emt 0:00:13]} 10. O-O {[%emt 0:00:05]} Bf5 {[%emt 0:02:26]} 11. Bxf5 {[%emt 0:01:03]} gxf5 {[%emt 0:00:02]} 12. Ne5 {[%emt 0:01:31]} Rc8 {[%emt 0:01:43]} 13. Rc1 {[%emt 0:02:42]} e6 {[%emt 0:05:24]} 14. Bg5 {[%emt 0:10:33]} Qd6 {[%emt 0:02:00]} 15. Bf4 {[%emt 0:06:29]} Qe7 {[%emt 0:03:30]} 16. Bg5 {[%emt 0:02:20]} Qe8 {[%emt 0:09:07]} 17. Qb3 {[%emt 0:08:36]} b5 {[%emt 0:11:35]} 18. Nxc6 {[%emt 0:04:36]} Rxc6 {[%emt 0:01:53]} 19. Bxf6 {[%emt 0:00:08]} Bxf6 {[%emt 0:00:08]} 20. Ne2 {[%emt 0:00:10]} Rc4 {[%emt 0:01:44]} 21. Qd3 {[%emt 0:02:50]} Qb8 {[%emt 0:11:34]} 22. b3 {[%emt 0:02:54]} Rcc8 {[%emt 0:00:40]} 23. Qd2 {[%emt 0:02:19]} Be7 {[%emt 0:02:06]} 24. Rxc8 {[%emt 0:01:13]} Rxc8 {[%emt 0:00:06]} 25. Rc1 {[%emt 0:00:06]} Bd6 {[%emt 0:04:15]} 26. Rxc8+ {[%emt 0:04:12]} Qxc8 {[%emt 0:00:01]} 27. Qc1 {[%emt 0:00:11]} Qa8 {[%emt 0:06:03]} 1/2-1/2

[Event "FIDE World Senior-50 CC 2023"]
[Site "Terrasini"]
[Date "2023.10.29"]
[Round "5.18"]
[White "Holzke, Frank"]
[Black "Lasinskas, Povilas"]
[Result "1-0"]
[ECO "E16"]
[WhiteElo "2473"]
[BlackElo "2143"]
[Annotator "RC"]
[PlyCount "73"]
[EventDate "2023.10.22"]
[EventType "swiss"]
[EventCountry "ITA"]
[SourceTitle "playchess.com"]
[Source "ChessBase"]
[SourceQuality "1"]
[TimeControl "40/5400+30:1800+30"]

1. Nf3 {[%emt 0:00:08]} Nf6 {[%emt 0:04:40]} 2. c4 {[%emt 0:00:22]} e6 {[%emt 0:00:09]} 3. d4 {[%emt 0:00:24]} Bb4+ {[%emt 0:00:18]} 4. Bd2 {[%emt 0:00:54]} a5 {[%emt 0:00:09]} 5. g3 {[%emt 0:00:37]} b6 {[%emt 0:00:10]} 6. Bg2 {[%emt 0:00:41]} Bb7 {[%emt 0:00:06]} 7. O-O {[%emt 0:00:33]} Bxd2 {[%emt 0:00:06]} 8. Qxd2 {[%emt 0:00:51]} O-O {[%emt 0:00:22]} 9. Nc3 {[%emt 0:03:38]} d6 {[%emt 0:00:21]} 10. Qd3 {[%emt 0:02:17]} Nbd7 {[%emt 0:00:19]} 11. Rfd1 {[%emt 0:02:42]} Qe7 {[%emt 0:00:32]} 12. e4 {[%emt 0:00:49]} e5 {[%emt 0:00:43]} 13. Nd5 {[%emt 0:03:58]} Bxd5 {[%emt 0:00:33]} 14. cxd5 {[%emt 0:00:22]} exd4 {[%emt 1:29:02]} 15. Nxd4 {[%emt 0:00:27]} Nc5 {[%emt 0:00:00]} 16. Qc2 {[%emt 0:02:04]} Rfe8 {[%emt 0:00:00]} 17. Re1 {[%emt 0:04:20]} Nfd7 {[%emt 0:00:00]} 18. f4 {[%emt 0:02:02]} Qf6 {[%emt 0:00:00]} 19. Rad1 {[%emt 0:00:58]} Qg6 {[%emt 0:00:00]} 20. b3 {[%emt 0:06:08]} Nf6 {[%emt 0:00:00]} 21. e5 {[%emt 0:07:48]} Qxc2 {[%emt 0:00:00]} 22. Nxc2 {[%emt 0:00:17]} dxe5 {[%emt 0:00:00]} 23. fxe5 {[%emt 0:02:01]} Ng4 {[%emt 0:00:00]} 24. d6 {[%emt 0:08:21]} Rad8 {[%emt 0:00:00]} 25. Bc6 {[%emt 0:02:06]} Rf8 {[%emt 0:00:00]} 26. dxc7 {[%emt 0:03:44]} Rc8 {[%emt 0:00:00]} 27. Bd7 {[%emt 0:01:10]} Nxd7 {[%emt 0:00:00]} 28. Rxd7 {[%emt 0:00:15]} Rfe8 {[%emt 0:00:00]} 29. Nd4 {[%emt 0:04:32]} Nxe5 {[%emt 0:00:00]} 30. Rxe5 {[%emt 0:02:19]} Rxe5 {[%emt 0:00:00]} 31. Rd8+ {[%emt 0:00:15]} Re8 {[%emt 0:00:00]} 32. Rxe8+ {[%emt 0:00:26]} Rxe8 {[%emt 0:00:00]} 33. Nf5 {[%emt 0:00:24]} Kf8 {[%emt 0:00:00]} 34. Nd6 {[%emt 0:00:15]} Ra8 {[%emt 0:00:00]} 35. c8=Q+ {[%emt 0:00:46]} Rxc8 {[%emt 0:00:00]} 36. Nxc8 {[%emt 0:00:07]} b5 {[%emt 0:00:00]} 37. Kf2 {[%emt 0:00:36]} 1-0

[Event "FIDE World Senior-50 CC 2023"]
[Site "Terrasini"]
[Date "2023.10.29"]
[Round "5.19"]
[White "Maier, Christian"]
[Black "Steadman, Michael V R"]
[Result "1-0"]
[ECO "C01"]
[WhiteElo "2278"]
[BlackElo "2114"]
[Annotator "ChessBase"]
[PlyCount "67"]
[EventDate "2023.10.22"]
[EventType "swiss"]
[EventCountry "ITA"]
[SourceTitle "playchess.com"]
[Source "ChessBase"]
[SourceQuality "1"]
[TimeControl "40/5400+30:1800+30"]

1. e4 {[%emt 0:16:22]} e6 {[%emt 0:00:15]} 2. d4 {[%emt 0:03:50]} d5 {[%emt 0:00:06]} 3. Nc3 {[%emt 0:00:04]} Bb4 {[%emt 0:00:11]} 4. exd5 {[%emt 0:00:22]} exd5 {[%emt 0:00:11]} 5. Bd3 {[%emt 0:00:06]} Nc6 {[%emt 0:00:31]} 6. a3 {[%emt 0:00:25]} Bxc3+ {[%emt 0:00:45]} 7. bxc3 {[%emt 0:00:08]} Nge7 {[%emt 0:01:04]} 8. Qf3 {[%emt 0:00:45]} Be6 {[%emt 0:02:36]} 9. Ne2 {[%emt 0:04:44]} Qd7 {[%emt 0:02:12]} 10. Ng3 {[%emt 0:01:28]} O-O-O {[%emt 0:03:27]} 11. h3 {[%emt 0:01:42]} f6 {[%emt 0:04:52]} 12. a4 {[%emt 0:01:10]} Ng6 {[%emt 0:09:50]} 13. O-O {[%emt 0:00:51]} Nh4 {[%emt 0:04:48]} 14. Qh5 {[%emt 0:00:58]} g5 {[%emt 0:01:36]} 15. f4 {[%emt 0:00:47]} h6 {[%emt 0:03:44]} 16. Bd2 {[%emt 0:07:01]} Rde8 {[%emt 0:05:08]} 17. Rae1 {[%emt 0:01:07]} Kb8 {[%emt 0:05:11]} 18. f5 {[%emt 0:03:46]} Bf7 {[%emt 0:00:10]} 19. Rxe8+ {[%emt 0:00:20]} Bxe8 {[%emt 0:01:45]} 20. Qe2 {[%emt 0:01:09]} Qc8 {[%emt 0:09:06]} 21. Nh5 {[%emt 0:02:29]} Bxh5 {[%emt 0:05:33]} 22. Qxh5 {[%emt 0:00:08]} Ne7 {[%emt 0:00:18]} 23. Qf7 {[%emt 0:03:16]} Nhxf5 {[%emt 0:01:24]} 24. Qxf6 {[%emt 0:00:08]} Rf8 {[%emt 0:00:12]} 25. Qe5 {[%emt 0:00:10]} Nc6 {[%emt 0:03:49]} 26. Qxd5 {[%emt 0:00:13]} Nd6 {[%emt 0:00:51]} 27. Rxf8 {[%emt 0:01:32]} Qxf8 {[%emt 0:00:05]} 28. Qe6 {[%emt 0:00:45]} a6 {[%emt 0:01:12]} 29. d5 {[%emt 0:05:03]} Na5 {[%emt 0:01:05]} 30. Qg4 {[%emt 0:01:36]} Qe8 {[%emt 0:01:27]} 31. Qb4 {[%emt 0:00:48]} b6 {[%emt 0:00:46]} 32. Bxa6 {[%emt 0:04:15]} Qe5 {[%emt 0:04:51]} 33. Qd4 {[%emt 0:02:41]} Qxd4+ {[%emt 0:02:06]} 34. cxd4 {[%emt 0:00:07]} 1-0

[Event "FIDE World Senior-50 CC 2023"]
[Site "Terrasini"]
[Date "2023.10.30"]
[Round "6.1"]
[White "Adams, Michael"]
[Black "Atalik, Suat"]
[Result "1/2-1/2"]
[ECO "C50"]
[WhiteElo "2670"]
[BlackElo "2427"]
[Annotator "TA"]
[PlyCount "67"]
[EventDate "2023.10.22"]
[EventType "swiss"]
[EventCountry "ITA"]
[SourceTitle "playchess.com"]
[Source "ChessBase"]
[SourceQuality "1"]
[TimeControl "40/5400+30:1800+30"]

{[%evp 10,67,18,6,8,5,6,6,8,12,13,0,16,0,16,16,17,14,19,29,18,32,20,19,41,45,81,70,100,102,100,97,104,69,67,72,75,72,70,85,85,91,92,72,81,81,89,72,83,34,34,18,22,14,20,0,0,0,0,0]} 1. e4 {[%emt 0:00:03]} e5 {[%emt 0:00:10]} 2. Nf3 {[%emt 0:00:06]} Nc6 {[%emt 0:00:14]} 3. Bc4 {[%emt 0:00:18]} Bc5 {[%emt 0:00:24]} 4. d3 {[%emt 0:00:11]} Nf6 {[%emt 0:00:47]} 5. a4 {[%emt 0:00:18]} d6 {[%emt 0:02:29]} 6. O-O {[%emt 0:01:40]} h6 {[%emt 0:04:36] C50: Hungarian Defence and Giuoco Pianissimo.} 7. a5 {[%emt 0:03:14] Recently 7.Be3 got a lot of attention.} a6 {[%emt 0:00:57]} 8. Be3 {[%emt 0:04:47]} Bxe3 {[%emt 0:04:35]} 9. fxe3 {[%emt 0:00:06]} Be6 {[%emt 0:00:27]} 10. Bxe6 {[%emt 0:05:41]} fxe6 {[%emt 0:00:07]} 11. Nbd2 {[%emt 0:01:02]} O-O {[%emt 0:04:08]} 12. c3 {[%emt 0:02:17]} Qd7 {[%emt 0:01:46] [#]} 13. Qb3 $146 {[%emt 0:02:22]} ({Predecessor:} 13. Nc4 Rab8 14. Qc2 Qe7 15. b4 Nh7 16. Qb3 Ng5 17. Ncd2 Nxf3+ 18. Nxf3 Nd8 19. b5 axb5 20. Qxb5 {½-½ Gumularz,S (2591)-Zou,C (2413) Teplice op 2023 (4)}) 13... Kh8 {[%emt 0:01:26]} 14. h3 {[%emt 0:04:27]} (14. Qxb7 $2 {too greedy.} Rfb8 $19) 14... Rab8 {[%emt 0:04:43]} 15. Rf2 {[%emt 0:05:31]} d5 {[%emt 0:08:21]} 16. Qc2 {[%emt 0:02:25]} Rfd8 {[%emt 0:05:33]} 17. d4 {[%emt 0:03:12]} exd4 {[%emt 0:07:39]} 18. exd4 {[%emt 0:00:42]} dxe4 {[%emt 0:01:09]} 19. Nxe4 {[%emt 0:00:16]} Nxe4 {[%emt 0:00:05]} 20. Qxe4 {[%emt 0:00:04]} Rf8 {[%emt 0:00:14]} 21. Raf1 {[%emt 0:08:32] [#] Hoping for Ne5. White is more active.} Kg8 $1 {[%emt 0:06:04]} 22. b4 {[%emt 0:01:30]} Qd5 {[%emt 0:09:03]} 23. Re1 {[%emt 0:05:05]} Rf6 {[%emt 0:04:11]} 24. Rfe2 {[%emt 0:04:58]} Qxe4 {[%emt 0:10:04]} 25. Rxe4 {[%emt 0:00:05]} Kf7 {[%emt 0:00:03]} 26. Nd2 {[%emt 0:10:32]} b6 {[%emt 0:03:22]} 27. axb6 {[%emt 0:02:38]} cxb6 {[%emt 0:00:11]} 28. R4e2 {[%emt 0:06:54]} Rd8 {[%emt 0:02:08][%cal Oe6e5]} 29. Nc4 {[%emt 0:09:23]} (29. Ra1 $16) 29... b5 $14 {[%emt 0:01:37]} 30. Ne5+ {[%emt 0:05:04]} Nxe5 {[%emt 0:00:07] The position is equal.} 31. Rxe5 {[%emt 0:00:02]} Rd5 {[%emt 0:00:28]} 32. h4 {[%emt 0:02:18]} Rxe5 {[%emt 0:06:53]} 33. Rxe5 {[%emt 0:00:05]} Ke7 {[%emt 0:00:04]} 34. Rc5 {[%emt 0:05:06] Weighted Error Value: White=0.07 (flawless) /Black=0.05 (flawless)} 1/2-1/2

[Event "FIDE World Senior-50 CC 2023"]
[Site "Terrasini"]
[Date "2023.10.30"]
[Round "6.2"]
[White "Morovic Fernandez, Ivan"]
[Black "Sturua, Zurab"]
[Result "1/2-1/2"]
[ECO "C78"]
[WhiteElo "2488"]
[BlackElo "2514"]
[Annotator "RC"]
[PlyCount "47"]
[EventDate "2023.10.22"]
[EventType "swiss"]
[EventCountry "ITA"]
[SourceTitle "playchess.com"]
[Source "ChessBase"]
[SourceQuality "1"]
[TimeControl "40/5400+30:1800+30"]

1. e4 {[%emt 0:00:09]} e5 {[%emt 0:00:19]} 2. Nf3 {[%emt 0:00:06]} Nc6 {[%emt 0:00:09]} 3. Bb5 {[%emt 0:00:22]} a6 {[%emt 0:00:30]} 4. Ba4 {[%emt 0:00:17]} Nf6 {[%emt 0:00:51]} 5. O-O {[%emt 0:00:23]} b5 {[%emt 0:01:25]} 6. Bb3 {[%emt 0:01:26]} Bc5 {[%emt 0:00:17]} 7. c3 {[%emt 0:03:47]} d6 {[%emt 0:01:36]} 8. d4 {[%emt 0:00:10]} Bb6 {[%emt 0:00:06]} 9. Be3 {[%emt 0:00:21]} O-O {[%emt 0:01:08]} 10. Nbd2 {[%emt 0:00:35]} Bb7 {[%emt 0:07:36]} 11. dxe5 {[%emt 0:11:15]} dxe5 {[%emt 0:03:04]} 12. Qe2 {[%emt 0:01:13]} Qe7 {[%emt 0:18:51]} 13. Rfd1 {[%emt 0:22:59]} Na5 {[%emt 0:04:54]} 14. Bc2 {[%emt 0:00:22]} Bxe3 {[%emt 0:00:27]} 15. Qxe3 {[%emt 0:00:04]} c5 {[%emt 0:56:47]} 16. a4 {[%emt 0:05:37]} b4 {[%emt 0:00:00]} 17. cxb4 {[%emt 0:05:26]} cxb4 {[%emt 0:00:00]} 18. Rac1 {[%emt 0:00:16]} Rac8 {[%emt 0:00:00]} 19. Bd3 {[%emt 0:01:03]} Nd7 {[%emt 0:00:00]} 20. Nc4 {[%emt 0:07:06]} Nb3 {[%emt 0:00:00]} 21. Rb1 {[%emt 0:14:21]} Nbc5 {[%emt 0:00:00]} 22. Bc2 {[%emt 0:02:07]} b3 {[%emt 0:00:00]} 23. Bxb3 {[%emt 0:00:05]} Bxe4 {[%emt 0:00:00]} 24. Rbc1 {[%emt 0:05:04]} 1/2-1/2

[Event "FIDE World Senior-50 CC 2023"]
[Site "Terrasini"]
[Date "2023.10.30"]
[Round "6.3"]
[White "Bischoff, Klaus"]
[Black "Stefansson, Hannes"]
[Result "1/2-1/2"]
[ECO "A28"]
[WhiteElo "2473"]
[BlackElo "2529"]
[Annotator "RC"]
[PlyCount "47"]
[EventDate "2023.10.22"]
[EventType "swiss"]
[EventCountry "ITA"]
[SourceTitle "playchess.com"]
[Source "ChessBase"]
[SourceQuality "1"]
[TimeControl "40/5400+30:1800+30"]

1. c4 {[%emt 0:00:10]} e5 {[%emt 0:00:34]} 2. Nc3 {[%emt 0:00:13]} Nf6 {[%emt 0:00:24]} 3. Nf3 {[%emt 0:00:22]} Nc6 {[%emt 0:00:38]} 4. d3 {[%emt 0:00:29]} d5 {[%emt 0:01:23]} 5. cxd5 {[%emt 0:01:02]} Nxd5 {[%emt 0:00:18]} 6. e3 {[%emt 0:00:54]} Be7 {[%emt 0:00:39]} 7. Be2 {[%emt 0:01:09]} O-O {[%emt 0:00:39]} 8. a3 {[%emt 0:02:03]} Be6 {[%emt 0:04:11]} 9. Qc2 {[%emt 0:02:10]} f5 {[%emt 0:03:43]} 10. O-O {[%emt 0:04:25]} a5 {[%emt 0:02:51]} 11. Rd1 {[%emt 0:13:41]} Kh8 {[%emt 0:06:22]} 12. Bd2 {[%emt 0:05:54]} Nb6 {[%emt 0:05:15]} 13. b3 {[%emt 0:00:34]} Qe8 {[%emt 0:02:56]} 14. Be1 {[%emt 0:02:15]} Qf7 {[%emt 0:04:17]} 15. Nd2 {[%emt 0:01:20]} f4 {[%emt 0:02:56]} 16. Bf3 {[%emt 0:05:13]} Bg5 {[%emt 0:04:20]} 17. Bxc6 {[%emt 0:05:54]} bxc6 {[%emt 0:00:05]} 18. exf4 {[%emt 0:03:02]} Bxf4 {[%emt 0:02:10]} 19. Nce4 {[%emt 0:02:09]} Bd5 {[%emt 0:04:21]} 20. f3 {[%emt 0:06:21]} a4 {[%emt 0:02:24]} 21. bxa4 {[%emt 0:02:15]} Rxa4 {[%emt 0:02:35]} 22. Bf2 {[%emt 0:02:09]} Rfa8 {[%emt 0:01:59]} 23. Qc3 {[%emt 0:03:10]} Nd7 {[%emt 0:05:23]} 24. Nc4 {[%emt 0:06:41]} 1/2-1/2

[Event "FIDE World Senior-50 CC 2023"]
[Site "Terrasini"]
[Date "2023.10.30"]
[Round "6.4"]
[White "Minasian, Artashes"]
[Black "Degraeve, Jean-Marc"]
[Result "1-0"]
[ECO "A26"]
[WhiteElo "2462"]
[BlackElo "2479"]
[Annotator "RC"]
[PlyCount "57"]
[EventDate "2023.10.22"]
[EventType "swiss"]
[EventCountry "ITA"]
[SourceTitle "playchess.com"]
[Source "ChessBase"]
[SourceQuality "1"]
[TimeControl "40/5400+30:1800+30"]

1. Nf3 {[%emt 0:00:14]} Nf6 {[%emt 0:00:20]} 2. g3 {[%emt 0:00:23]} g6 {[%emt 0:00:07]} 3. Bg2 {[%emt 0:00:12]} Bg7 {[%emt 0:00:07]} 4. O-O {[%emt 0:00:09]} O-O {[%emt 0:00:06]} 5. d3 {[%emt 0:00:49]} d6 {[%emt 0:01:14]} 6. c4 {[%emt 0:01:26]} e5 {[%emt 0:01:41]} 7. Nc3 {[%emt 0:00:14]} Nc6 {[%emt 0:00:09]} 8. Rb1 {[%emt 0:01:38]} a5 {[%emt 0:00:13]} 9. a3 {[%emt 0:01:25]} Re8 {[%emt 0:00:38]} 10. Bg5 {[%emt 0:01:44]} h6 {[%emt 0:00:53]} 11. Bxf6 {[%emt 0:00:17]} Bxf6 {[%emt 0:01:34]} 12. b4 {[%emt 0:00:50]} axb4 {[%emt 0:00:08]} 13. axb4 {[%emt 0:00:05]} Bg7 {[%emt 0:01:39]} 14. b5 {[%emt 0:05:13]} Nd4 {[%emt 0:00:48]} 15. Nxd4 {[%emt 0:13:06]} exd4 {[%emt 0:00:12]} 16. Nd5 {[%emt 0:00:02]} Ra2 {[%emt 0:19:31]} 17. Re1 {[%emt 0:02:12]} Bd7 {[%emt 0:09:33]} 18. Nb4 {[%emt 0:22:05]} Ra7 {[%emt 0:00:39]} 19. b6 {[%emt 0:00:09]} cxb6 {[%emt 0:00:10]} 20. Nd5 {[%emt 0:00:03]} b5 {[%emt 0:01:05]} 21. cxb5 {[%emt 0:00:05]} b6 {[%emt 0:52:22]} 22. Nb4 {[%emt 0:03:27]} Re5 {[%emt 0:00:06]} 23. Nc6 {[%emt 0:04:12]} Bxc6 {[%emt 0:00:02]} 24. bxc6 {[%emt 0:00:21]} Rc5 {[%emt 0:01:17]} 25. Qb3 {[%emt 0:02:15]} d5 {[%emt 0:00:07]} 26. Rec1 {[%emt 0:06:28]} Raa5 {[%emt 0:00:01]} 27. Bxd5 {[%emt 0:06:36]} Rxc1+ {[%emt 0:03:56]} 28. Rxc1 {[%emt 0:00:04]} Ra7 {[%emt 0:00:02]} 29. Rb1 {[%emt 0:03:56]} 1-0